Cogmind - Beta 17.1 @@@ ROGUE MODE // 2026.09.07 @ 05:20:36 Player: Kotyk77 Result: Destroyed by B-99 Colossus with Multirail Performance ------------- Evolutions (9) 4500 Regions Visited (16) 3200 Robots Destroyed (93) 465 Value Destroyed (2389) 2389 Prototype IDs (42) 840 Alien Tech Used (0) 0 Bonus (1741) 1741 TOTAL SCORE: 13135 Bonus ------- Triggered Max Security 1000 High Alert Combat Kills 102 Entered DSFs 500 Aligned with FarCom 300 Friendly Fire -161 Cogmind --------- Core Integrity 0/1600 Matter 194/300 Energy 99/100 System Corruption 17% Temperature Cool (0) Movement Core (50) Location -1/Access Parts ------- > --- POWER (2) -------- (None) > --- PROPULSION (8) --- (None) > --- UTILITY (11) ----- Experimental Terrain Scan Processor Graphene Brace > --- WEAPON (4) ------- (None) > --- INVENTORY (5) ---- Light Particle Reactor Enhanced Nova Cannon Enhanced Nova Cannon Hellfire Missile Launcher Enhanced Force Lance Peak State ------------ > --- POWER ------------ Micro Antimatter Reactor Micro Antimatter Reactor > --- PROPULSION ------- Nuclear Pulse Array Impulse Thruster Array Impulse Thruster Array Impulse Thruster Array > --- UTILITY ---------- Lightpack 2.0 Experimental Optical Array Advanced Signal Interpreter Improved Terrain Scanner Experimental Terrain Scan Processor Advanced Reaction Control System Advanced Hacking Suite Advanced Hacking Suite Advanced Hacking Suite > --- WEAPON ----------- Compact HERF Cannon Enhanced Coil Gun Enhanced Force Lance > --- INVENTORY -------- Micro Antimatter Reactor Light Quantum Reactor Light Quantum Reactor Improved Surge Thruster Cooled Nuclear Pulse Thruster Q-thruster Q-thruster Impulse Thruster Array Impulse Thruster Array Improved Q-thruster Advanced Power Amplifier Advanced Cooling System Experimental Optical Array Advanced Sensor Array Improved Melee Analysis Suite Improved Melee Analysis Suite Experimental Actuator Array Experimental Transmission Jammer Advanced ECM Suite Improved Light Armor Plating Improved Medium Armor Plating EM Disruption Field Hacking Suite Authchip [R/Combat] Authchip [Armor] Authchip [Weapon] Improved Component Analysis Suite Advanced Recalibrator Mini Drone Bay Compact HERF Cannon Compact HERF Cannon Compact HERF Cannon Nova Cannon Enhanced Nova Cannon Railgun Enhanced Hardcell Cannon Enhanced Hardcell Cannon Enhanced Hardcell Cannon [Rating: 205] Favorites ----------- Power Heavy Ion Engine Engine Heavy Ion Engine Power Core Light Nuclear Core Reactor Micro Antimatter Reactor Propulsion Armored Wheel Leg Carbon-fiber Leg Wheel Armored Wheel Flight Unit Impulse Thruster Array Utility Lightpack 2.0 Device Improved Terrain Scanner Storage Lightpack 2.0 Processor Enhanced Optical Array Hackware Advanced Hacking Suite Protection Light Armor Plating Weapon Particle Cannon Energy Gun Particle Gun Energy Cannon Particle Cannon Ballistic Gun Heavy Battle Rifle Ballistic Cannon Gauss Cannon Launcher Rocket Launcher Special Weapon Improved Remote Datajack Impact Weapon Hammer Slashing Weapon Power Sword Piercing Weapon Enhanced Force Lance Special Melee Weapon Datajack Build | -11 -10 -10 -9 -9 -9 -8 -8 -7 -6 -5 -4 -4 -3 -2 -2 -1 ------- Run | Yrd Mat Min Mat Min Exi Min Mat Fac Fac Fac Fac DSF Res Res Tes Acc Slots Evolved 18 | . . . 2 . . . 2 2 2 2 2 . 2 2 . 2 Power 1 | . . . . . . . . . . . . . . 1 . . Propulsion 6 | . . . . . . . . 2 . . 2 . 1 1 . . Utility 9 | . . . 1 . . . 2 . 2 1 . . 1 . . 2 Weapon 2 | . . . 1 . . . . . . 1 . . . . . . Parts Attached 157 | 7 5 3 13 1 1 8 4 19 14 15 11 10 10 10 1 25 Power 19 | 1 1 . 3 . . . 1 . . 2 1 4 1 1 1 3 Engine 7 | 1 1 . 3 . . . 1 . . 1 . . . . . . Core 5 | . . . . . . . . . . 1 1 3 . . . . Reactor 7 | . . . . . . . . . . . . 1 1 1 1 3 Propulsion 36 | 2 2 . . . 1 2 . 10 2 2 3 3 2 5 . 2 Treads . | . . . . . . . . . . . . . . . . . Leg 2 | . . . . . . . . 2 . . . . . . . . Wheel 19 | 2 2 . . . 1 2 . 8 2 2 . . . . . . Hover . | . . . . . . . . . . . . . . . . . Flight 15 | . . . . . . . . . . . 3 3 2 5 . 2 Utility 61 | 2 1 1 4 1 . 2 3 6 8 6 5 . 5 4 . 13 Device 29 | 1 . 1 . . . 1 1 3 2 3 4 . 1 3 . 9 Storage 3 | 1 1 . . . . . 1 . . . . . . . . . Processor 15 | . . . 2 . . . 1 1 4 3 . . 1 1 . 2 Hackware 4 | . . . . . . . . . . . . . 3 . . 1 Protection 10 | . . . 2 1 . 1 . 2 2 . 1 . . . . 1 Artifact . | . . . . . . . . . . . . . . . . . Weapon 41 | 2 1 2 6 . . 4 . 3 4 5 2 3 2 . . 7 Energy Gun 3 | . . 1 1 . . . . . 1 . . . . . . . Energy Cannon 10 | . . . 3 . . 1 . 1 1 1 . . . . . 3 Ballistic Gun 6 | 2 . 1 . . . 1 . . . . . 1 . . . 1 Ballistic Cannon 4 | . . . . . . . . 1 1 . 1 . . . . 1 Launcher 3 | . . . . . . 1 . . . 1 . . . . . 1 Special Weapon 4 | . 1 . . . . . . . . 2 . . 1 . . . Impact Weapon 2 | . . . 1 . . 1 . . . . . . . . . . Slashing Weapon 5 | . . . . . . . . 1 1 1 1 1 . . . . Piercing Weapon 3 | . . . . . . . . . . . . 1 1 . . 1 Special Melee Weapon 1 | . . . 1 . . . . . . . . . . . . . Unidentified Prototypes 8 | . . 1 . . . . . . . 1 . . 1 . . 5 Parts Lost 55 | . . 1 3 1 . 4 . 8 . 4 . . 1 8 . 25 Power 5 | . . . 1 . . . . . . 1 . . . . . 3 Propulsion 17 | . . . . . . 2 . 5 . 2 . . . 2 . 6 Utility 21 | . . . 2 1 . . . 2 . . . . . 3 . 13 Weapon 12 | . . 1 . . . 2 . 1 . 1 . . 1 3 . 3 Highest Loss Streak 9 | . . 1 2 1 . 4 . 3 . 3 . . 1 7 . 9 To Critical Strikes 1 | . . . . . . . . 1 . . . . . . . . Average Backups 28 | 3 14 22 23 24 23 22 24 36 38 36 32 35 34 33 36 18 Power 3 | . 2 3 2 4 4 4 4 5 4 2 1 5 2 1 1 1 Propulsion 3 | 1 3 3 3 4 3 2 3 1 2 5 6 5 6 7 6 3 Utility 13 | . 4 9 9 9 9 9 10 18 19 18 16 15 16 19 21 8 Weapon 7 | . 4 7 6 6 6 4 5 9 10 9 7 8 8 5 6 4 Tool/Special . | . . . . . . . . . . . . . . . . . Unused Backups 119 | . 9 3 4 1 1 1 4 4 11 16 4 22 5 8 . 26 Power 22 | . 1 1 . . . 1 1 1 1 2 1 10 2 1 . . Propulsion 19 | . 6 . . . . . . . 2 4 . 3 1 . . 3 Utility 47 | . . 1 1 . 1 . 3 2 4 6 1 7 . 5 . 16 Weapon 30 | . 2 1 3 1 . . . 1 4 4 2 1 2 2 . 7 Tool/Special 1 | . . . . . . . . . . . . 1 . . . . Average Slot Usage (%) 83 | . 100 99 99 99 100 99 80 80 84 87 73 65 74 68 60 43 Engine 6 | . 14 14 11 11 11 11 9 7 6 4 . . . . . . Reactor 1 | . . . . . . . . . . . . 3 3 8 8 3 Wheel 17 | . 28 28 22 22 22 21 18 25 26 22 7 . . . . . Flight 3 | . . . . . . . . . . . 9 15 19 17 17 8 Device 7 | . 14 14 6 . . 6 7 9 6 6 10 10 8 6 8 4 Storage 7 | . 14 14 11 11 11 11 9 7 6 5 5 5 4 4 4 1 Processor 8 | . . . 8 11 11 11 1 1 14 17 14 10 6 8 8 9 Hackware 2 | . . . . . . . . . . . . . 9 9 8 10 Protection 3 | . . . 6 10 11 4 8 3 3 3 . 5 2 . . . Energy Gun 1 | . . 13 7 . . . . . . . . . . . . . Energy Cannon 5 | . . . 11 11 11 11 9 6 6 5 5 5 4 2 . 1 Ballistic Gun 6 | . 26 14 11 11 11 8 9 5 . . . . . . . 1 Ballistic Cannon 1 | . . . . . . . . . 5 5 5 . . . . . Special Weapon 1 | . 1 . . . . . . . . 5 2 1 4 2 . . Impact Weapon 2 | . . . 3 11 11 11 9 . . . . . . . . . Slashing Weapon 2 | . . . . . . . . 6 6 4 2 6 5 2 . . Peak Build Rating 205 | 9 15 25 29 20 21 22 50 65 76 95 124 153 172 190 174 205 Average Rating 72 | 5 12 21 22 19 20 21 47 58 71 89 111 135 164 179 172 115 On Entrance 70 | . 9 15 25 20 20 21 22 50 64 76 92 116 153 172 170 174 Avg Prop Armor Cover (%) 8 | . . . . . . . . 5 . . . . . . . 22 Naked Turns . | . . . . . . . . . . . . . . . . . Heaviest Build 103 | 15 92 95 103 101 101 101 99 28 38 46 39 41 43 50 35 45 Greatest Support 72 | 26 26 24 24 22 22 22 22 54 60 64 64 48 57 71 69 72 Greatest Overweight (x) 9 | . 3 3 4 4 5 9 4 1 . . . . . . . 4 Average Overweight (x) . | . 1 3 3 4 4 4 1 . . . . . . . . . Largest Inventory Capacity 40 | 8 25 25 25 25 25 25 40 40 40 40 40 40 40 40 40 40 Average Capacity 31 | 7 17 25 25 25 25 25 39 40 40 40 40 40 40 40 40 21 Most Carried 40 | 7 25 25 25 25 25 25 33 40 40 40 39 40 40 40 40 40 Average Carried 29 | 3 14 24 24 24 24 24 24 36 39 39 35 38 39 37 38 18 Final Capacity 40 | 8 25 25 25 25 25 25 40 40 40 40 40 40 40 40 40 5 Final Carried 40 | 7 25 24 25 24 25 25 33 40 38 39 33 40 40 35 40 5 Class Distribution -------------------- 33% | Mutant 25% | Hauler-Assassin 9% | Hauler-Mutant 8% | Hauler-Scout 4% | Hacker-Mutant 3% | Hauler-Sprinter 3% | Hacker-Scout 3% | Skirmisher 3% | Hauler-Skirmisher Dominant Class ---------------- Mutant | -10/Materials Mutant | -10/Mines Skirmisher | -9/Materials Mutant | -9/Mines Mutant | -9/Exiles Mutant | -8/Mines Hauler-Mutant | -8/Materials Hauler-Assassin | -7/Factory Hauler-Assassin | -6/Factory Hauler-Assassin | -5/Factory Hauler-Scout | -4/Factory Hauler-Scout | -4/DSF Hauler-Scout | -3/Research Hacker-Sprinter | -2/Research Hauler-Mutant | -2/Testing Hacker-Mutant | -1/Access Resources | -11 -10 -10 -9 -9 -9 -8 -8 -7 -6 -5 -4 -4 -3 -2 -2 -1 ----------- Run | Yrd Mat Min Mat Min Exi Min Mat Fac Fac Fac Fac DSF Res Res Tes Acc Matter Collected 2868 | 294 219 81 276 57 . 195 58 409 162 307 . 267 227 . 78 238 Remotely . | . . . . . . . . . . . . . . . . . Salvage Created 3369 | 107 372 80 779 64 . 326 73 535 160 514 . . 240 . . 119 Parts 179 | 6 25 7 49 4 . 13 2 27 11 21 . . 9 . . 5 Haulers Intercepted 7 | . . . 4 . . . 1 . . 1 . . 1 . . . Recyclers Shooed 2 | . . . . . . . . 2 . . . . . . . . Parts Field Recycled . | . . . . . . . . . . . . . . . . . Retrieved Matter . | . . . . . . . . . . . . . . . . . Parts Self-Destructed . | . . . . . . . . . . . . . . . . . Prevented . | . . . . . . . . . . . . . . . . . Parts Restored . | . . . . . . . . . . . . . . . . . Kills | -11 -10 -10 -9 -9 -9 -8 -8 -7 -6 -5 -4 -4 -3 -2 -2 -1 ------- Run | Yrd Mat Min Mat Min Exi Min Mat Fac Fac Fac Fac DSF Res Res Tes Acc Combat Hostiles Destroyed 55 | . 7 6 11 2 . 10 . 7 . 7 . . 3 . . 2 Melee 1 | . . . . . . . . . . . . . . . . 1 Guns 21 | . 7 6 4 . . 1 . 3 . . . . . . . . Cannons 20 | . . . 7 2 . 5 . 3 . 2 . . . . . 1 AOE 13 | . . . . . . 4 . 1 . 5 . . 3 . . . Classes Destroyed 16 | 2 3 1 4 1 . 1 . 3 . . . . . . . 1 Worker 7 | . . . 1 . . 1 . 4 . 1 . . . . . . Builder 5 | . . . . . . 1 . 1 1 1 . . . . . 1 Tunneler 3 | 2 . . 1 . . . . . . . . . . . . . Hauler 7 | . . . 4 . . . 1 . . 1 . . 1 . . . Recycler 6 | 1 . . 1 . . . . 1 1 2 . . . . . . Operator 3 | . 1 . 1 . . . 1 . . . . . . . . . Watcher 7 | . 2 . 2 . . . . 2 1 . . . . . . . Swarmer 21 | . . 6 3 . . 4 . . . 5 . . 3 . . . Cutter 1 | . . . . . . . . . . . . . . . . 1 Grunt 17 | . 7 . 4 1 . 5 . . . . . . . . . . Brawler 2 | . . . 1 . . 1 . . . . . . . . . . Duelist 3 | . . . . . . . . 3 . . . . . . . . Sentry 4 | . . . 3 . . . . 1 . . . . . . . . Hunter 2 | . . . . . . . . 2 . . . . . . . . Programmer 4 | . . . . . . . . 1 . 2 . . . . . 1 Assembled 1 | . . . . 1 . . . . . . . . . . . . Thug 1 | . . . . . . . . . . . . . 1 . . . Best Kill Streak 5 | 3 5 3 5 1 . 5 1 4 1 5 . . 3 . . 1 Combat Bots Only 5 | . 5 3 5 1 . 2 . 2 . 5 . . 3 . . 1 Max Kills in Single Turn 3 | 1 1 1 2 1 . 2 1 2 1 3 . . 3 . . 1 Gunslinging . | . . . . . . . . . . . . . . . . . Exploded 3 | . . . . . . 2 . 1 . 3 . . 2 . . . Melee 1 | . . . . . . . . . . . . . . . . 1 Uniques/NPCs Destroyed . | . . . . . . . . . . . . . . . . . Combat | -11 -10 -10 -9 -9 -9 -8 -8 -7 -6 -5 -4 -4 -3 -2 -2 -1 -------- Run | Yrd Mat Min Mat Min Exi Min Mat Fac Fac Fac Fac DSF Res Res Tes Acc Hostile Shots Fired 853 | . 46 33 38 13 . 54 . 137 13 29 . . 30 146 14 300 Missed 358 | . 16 8 7 4 . 15 . 46 3 9 . . 15 82 12 141 Hits 495 | . 30 25 31 9 . 39 . 91 10 20 . . 15 64 2 159 Melee 45 | . . . . . . . . 9 . . . . . . . 36 Projectile 450 | . 30 25 31 9 . 39 . 82 10 20 . . 15 64 2 123 AOE 1 | . . . . . . . . . . . . . . . . 1 Critical Strikes 35 | . . . . . . 4 . 5 1 1 . . 2 . . 22 Actively Blocked 1 | . . . . . . . . . . . . . . . . 1 Damage Taken 9340 | . 356 211 339 124 . 714 . 1292 166 582 . . 331 1444 47 3734 Core 2487 | . 66 31 49 57 . 123 . 208 31 31 . . 84 202 . 1605 Absorbed by Shields 19 | . . . . . . . . . . . . . . . . 19 Redirected to Shielding 102 | . . . . . . . . . . . . . . . . 102 Core Remaining (%) 84 | 100 . 61 . . . 42 100 70 96 96 . 100 93 . 86 . Volleys Fired 216 | 4 28 17 35 7 . 22 2 39 10 25 . 1 12 . . 14 Largest 3 | 2 2 2 3 2 . 2 2 2 2 2 . 1 1 . . 2 Hottest 169 | 40 120 98 169 101 . 101 91 108 125 130 . 7 33 . . 124 Shots Fired 380 | 8 54 34 77 14 . 37 4 77 15 32 . 1 12 . . 15 Gun 192 | 8 53 34 45 7 . 13 2 29 . . . . . . . 1 Cannon 157 | . . . 32 7 . 18 2 44 15 25 . . . . . 14 Launcher 15 | . . . . . . 6 . 4 . 3 . . 2 . . . Special 16 | . 1 . . . . . . . . 4 . 1 10 . . . Kinetic 180 | 8 53 17 35 7 . 13 2 34 5 4 . . . . . 2 Thermal 166 | . 1 17 42 7 . 18 2 39 10 21 . . . . . 9 Explosive 15 | . . . . . . 6 . 4 . 3 . . 2 . . . Electromagnetic 4 | . . . . . . . . . . . . . . . . 4 Robot Hit Streak 14 | 7 10 7 10 4 . 9 4 10 2 7 . 2 14 . . 1 Robot Miss Streak 7 | . 2 7 3 1 . 2 . 4 3 2 . . . . . 3 Penetration Max . | . . . . . . . . . . . . . . . . . Secondary Targets . | . . . . . . . . . . . . . . . . . Shots Hit Robots 247 | 7 35 14 53 9 . 21 3 61 7 16 . 1 14 . . 6 Core Hits 123 | 4 18 6 21 3 . 14 2 28 3 15 . . 7 . . 2 Critical Kills 2 | . . . 1 . . 1 . . . . . . . . . . Critical Parts Destroyed 1 | . . . . . . 1 . . . . . . . . . . Critical Strikes 7 | . . 1 1 . . 2 . . . 1 . . . . . 2 Burn 1 | . . 1 . . . . . . . . . . . . . . Meltdown 1 | . . . 1 . . . . . . . . . . . . . Destroy 1 | . . . . . . 1 . . . . . . . . . . Blast 1 | . . . . . . . . . . 1 . . . . . . Corrupt 1 | . . . . . . . . . . . . . . . . 1 Smash 1 | . . . . . . 1 . . . . . . . . . . Impale 1 | . . . . . . . . . . . . . . . . 1 Melee Attacks 140 | . . . 11 1 . 3 13 28 9 9 . . 28 26 3 9 Impact 29 | . . . 7 1 . 3 13 5 . . . . . . . . Slashing 84 | . . . . . . . . 23 9 9 . . 28 15 . . Piercing 23 | . . . . . . . . . . . . . . 11 3 9 Sneak Attacks 25 | . . . 1 1 . 2 1 9 4 5 . . 1 . . 1 Combat Hostiles . | . . . . . . . . . . . . . . . . . Follow-up Attacks . | . . . . . . . . . . . . . . . . . Damage Inflicted 7476 | 93 449 267 1077 200 . 902 83 1879 278 1321 . . 521 . . 406 Guns 1709 | 93 425 267 430 27 . 131 . 336 . . . . . . . . Cannons 2043 | . . . 523 124 . 246 41 605 82 316 . . . . . 106 Explosions 1706 | . . . . . . 437 . 301 . 571 . . 397 . . . Melee 1983 | . . . 124 49 . 88 42 637 196 434 . . 124 . . 289 Ramming 11 | . . . . . . . . . . . . . . . . 11 Kinetic 1777 | 93 425 176 345 27 . 131 . 464 53 63 . . . . . . Thermal 2182 | . 24 91 608 124 . 246 41 477 29 487 . . . . . 55 Explosive 1472 | . . . . . . 437 . 301 . 337 . . 397 . . . Electromagnetic 51 | . . . . . . . . . . . . . . . . 51 Impact 303 | . . . 124 49 . 88 42 . . . . . . . . . Slashing 1391 | . . . . . . . . 637 196 434 . . 124 . . . Piercing 289 | . . . . . . . . . . . . . . . . 289 Highest Corruption 17 | . . . . . . . . . 2 1 . . . 5 5 17 Average Corruption 4 | . . . . . . . . . 1 1 . . . 3 5 8 Corruption Purged . | . . . . . . . . . . . . . . . . . Corruption Blocked . | . . . . . . . . . . . . . . . . . Effects 28 | . . . . . . . . . . 1 . . . 3 4 20 Message Errors 9 | . . . . . . . . . . . . . . 1 2 6 Matter Fused 6 | . . . . . . . . . . . . . . . . 6 Heat Flow Errors 3 | . . . . . . . . . . . . . . . . 3 Energy Discharges 3 | . . . . . . . . . . 1 . . . 1 1 . Parts Fused 1 | . . . . . . . . . . . . . . 1 . . Data Loss (minor) 3 | . . . . . . . . . . . . . . . . 3 Data Loss (major) 1 | . . . . . . . . . . . . . . . 1 . Misdirections 2 | . . . . . . . . . . . . . . . . 2 Overload Shots . | . . . . . . . . . . . . . . . . . Overflow Damage 782 | . . . 51 9 . 65 . 181 33 186 . . 57 . . 200 Projectiles 25 | . . . . . . . . 25 . . . . . . . . Explosions 147 | . . . . . . 17 . . . 130 . . . . . . Melee 610 | . . . 51 9 . 48 . 156 33 56 . . 57 . . 200 Knockbacks 6 | . . . . 1 . 1 1 1 . 2 . . . . . . Impact 3 | . . . . 1 . 1 1 . . . . . . . . . Kinetic 3 | . . . . . . . . 1 . 2 . . . . . . Secondary . | . . . . . . . . . . . . . . . . . Self-Inflicted Damage 309 | . . . . . . 75 . . . 229 . . . . . 5 Shots 5 | . . . . . . 2 . . . 3 . . . . . . Rammed 2 | . . . . . . . . . . . . . . . . 2 Targets Rammed 2 | . . . . . . . . . . . . . . . . 2 Kicked . | . . . . . . . . . . . . . . . . . Crushed . | . . . . . . . . . . . . . . . . . Highest Temperature 423 | 6 25 273 242 168 . 423 24 150 88 100 . . . 15 . 304 Average Temperature 73 | 6 9 99 61 65 . 155 12 44 32 32 . . . 6 . 115 Received Heat Transfer 1127 | . 192 . 102 48 . 405 . 105 27 . . . 33 81 . 134 Effects 4 | . . 1 2 . . . . . . . . . . . . 1 Energy Bleed 1 | . . 1 . . . . . . . . . . . . . . Interference 3 | . . . 2 . . . . . . . . . . . . 1 Siege Activations . | . . . . . . . . . . . . . . . . . Martial Activations . | . . . . . . . . . . . . . . . . . Shielding Activations . | . . . . . . . . . . . . . . . . . Robots Disrupted . | . . . . . . . . . . . . . . . . . Combat Hostiles . | . . . . . . . . . . . . . . . . . Robots Corrupted 2 | . . . 1 . . 1 . . . . . . . . . . Combat Hostiles . | . . . . . . . . . . . . . . . . . Parts Fried 5 | . . . 2 . . 3 . . . . . . . . . . Impact Corruptions 6 | . . . 3 1 . 2 . . . . . . . . . . Robots Melted 1 | . . . 1 . . . . . . . . . . . . . Combat Hostiles . | . . . . . . . . . . . . . . . . . Parts Melted 5 | . . 2 . . . . . 2 . 1 . . . . . . Heat Transferred 3584 | . 50 259 1110 222 . 444 74 851 37 500 . . . . . 37 Parts Sabotaged . | . . . . . . . . . . . . . . . . . Parts Stolen . | . . . . . . . . . . . . . . . . . Parts Stripped . | . . . . . . . . . . . . . . . . . Power Chain Reactions . | . . . . . . . . . . . . . . . . . Alert | -11 -10 -10 -9 -9 -9 -8 -8 -7 -6 -5 -4 -4 -3 -2 -2 -1 ------- Run | Yrd Mat Min Mat Min Exi Min Mat Fac Fac Fac Fac DSF Res Res Tes Acc Maximum Alert Level 5 | . . . 1 . . . . . . . . . . . 5 4 Low Security (%) 84 | 100 100 100 58 100 . 100 100 100 100 100 100 100 100 100 . . Level 1 3 | . . . 41 . . . . . . . . . . . . . Level 2 . | . . . . . . . . . . . . . . . . . Level 3 7 | . . . . . . . . . . . . . . . . 77 Level 4 2 | . . . . . . . . . . . . . . . . 22 Level 5 . | . . . . . . . . . . . . . . . . . High Security . | . . . . . . . . . . . . . . . . . Max Security 1 | . . . . . . . . . . . . . . . 99 . Peak Influence 1609 | 5 136 80 246 108 . 171 20 70 24 193 88 26 84 64 1609 1147 Initial 1100 | . . 25 2 88 . . 16 2 24 . 88 26 14 7 3 1100 Average 162 | 1 46 29 128 36 . 90 4 21 1 18 62 26 16 10 1590 1070 Influence Increases 3125 | 15 222 167 517 20 . 306 47 355 50 317 . . 233 180 9 687 Destroy 0b10 Robot/C 1080 | . 140 120 220 20 . 200 . 140 . 140 . . 60 . . 40 Destroy 0b10 Robot/NC 190 | 15 15 . 50 . . 10 10 40 15 25 . . 5 . . 5 Destroy Leader 236 | . 34 20 72 . . 30 2 44 2 20 . . 12 . . . Trap Triggered on 0b10 10 | . . 10 . . . . . . . . . . . . . . Successful Hack 102 | . 16 . 16 . . . . 14 12 2 . . 6 9 . 27 Disable Machine 225 | . . . 30 . . 15 30 30 15 60 . . 15 15 . 15 Destroy Structure 337 | . 2 2 9 . . 51 5 27 6 70 . . 60 66 9 30 Partial Spotted 75 | . . . . . . . . . . . . . 30 15 . 30 Lose Combat Pursuer 870 | . 15 15 120 . . . . 60 . . . . 45 75 . 540 Influence Decreases 3733 | 15 156 225 296 249 . 262 86 309 101 137 142 12 245 188 3 1307 Entered New Map 1017 | . . 41 6 141 . . 28 3 27 . 92 12 12 7 3 645 Time Decay 2199 | 15 156 174 280 108 . 222 58 238 74 102 50 . 232 128 . 362 Lost Part 467 | . . 10 10 . . 40 . 68 . 35 . . 1 53 . 250 Lost Ally 50 | . . . . . . . . . . . . . . . . 50 Squads Dispatched 38 | . 3 . 2 . . . 1 2 4 1 . 2 3 4 6 10 Investigation 8 | . 2 . 2 . . . . . 1 . . . 1 1 . 1 Extermination 12 | . . . . . . . . 2 2 1 . . 2 2 . 3 Reinforcement 9 | . 1 . . . . . 1 . 1 . . 2 . 1 . 3 Assault 9 | . . . . . . . . . . . . . . . 6 3 Garrison . | . . . . . . . . . . . . . . . . . Intercept . | . . . . . . . . . . . . . . . . . Searches Triggered . | . . . . . . . . . . . . . . . . . Construction Impeded 1 | . . . . . . . . . 1 . . . . . . . Haulers Reinforced . | . . . . . . . . . . . . . . . . . Active Scanning Responses . | . . . . . . . . . . . . . . . . . Cargo Convoy Interrupts . | . . . . . . . . . . . . . . . . . Stealth | -11 -10 -10 -9 -9 -9 -8 -8 -7 -6 -5 -4 -4 -3 -2 -2 -1 --------- Run | Yrd Mat Min Mat Min Exi Min Mat Fac Fac Fac Fac DSF Res Res Tes Acc Distress Signals 9 | . 1 . 1 . . . . 1 . . . . 1 2 . 3 Communications Jammed 5 | . . . . . . . . . . . . . . . . 5 Distress Signals 5 | . . . . . . . . . . . . . . . . 5 Times Spotted 228 | . 13 7 23 3 . 8 . 18 7 7 . 1 17 49 15 60 Peak Tracking Total 17 | . 5 3 6 2 . 3 1 4 5 5 . 1 6 17 9 13 Tactical Retreats 36 | . 1 1 4 . . . . 1 . . . . 5 5 4 15 ECM-based Alert Blocks 56 | . . . . . . . . . . . . . 7 38 7 4 Traps | -11 -10 -10 -9 -9 -9 -8 -8 -7 -6 -5 -4 -4 -3 -2 -2 -1 ------- Run | Yrd Mat Min Mat Min Exi Min Mat Fac Fac Fac Fac DSF Res Res Tes Acc Traps Triggered 10 | . 1 . . . . . . 2 2 1 . 1 . . . 3 Indirectly . | . . . . . . . . . . . . . . . . . Trap Hack Attempts . | . . . . . . . . . . . . . . . . . Triggered . | . . . . . . . . . . . . . . . . . Disarmed . | . . . . . . . . . . . . . . . . . Reprogrammed . | . . . . . . . . . . . . . . . . . Reused 1 | . . 1 . . . . . . . . . . . . . . Traps Extracted . | . . . . . . . . . . . . . . . . . Installed 1 | . . 1 . . . . . . . . . . . . . . Triggered 1 | . . 1 . . . . . . . . . . . . . . Most Traps Carried 3 | . . 3 2 . . . . . . . . . . . . . Machines | -11 -10 -10 -9 -9 -9 -8 -8 -7 -6 -5 -4 -4 -3 -2 -2 -1 ---------- Run | Yrd Mat Min Mat Min Exi Min Mat Fac Fac Fac Fac DSF Res Res Tes Acc Machines Disabled 15 | . . . 2 . . 1 2 2 1 4 . . 1 1 . 1 Max in Single Turn 4 | . . . 1 . . 1 1 2 1 4 . . 1 1 . 1 Garrison Access 4 | . . . . . . . . . . 1 . . . . . 3 Machines Repaired . | . . . . . . . . . . . . . . . . . Machines Dismantled . | . . . . . . . . . . . . . . . . . Machines Sabotaged . | . . . . . . . . . . . . . . . . . Overloaded Fab Kills . | . . . . . . . . . . . . . . . . . Hacking | -11 -10 -10 -9 -9 -9 -8 -8 -7 -6 -5 -4 -4 -3 -2 -2 -1 --------- Run | Yrd Mat Min Mat Min Exi Min Mat Fac Fac Fac Fac DSF Res Res Tes Acc Machines Accessed 34 | . 3 . 6 . 5 . 1 1 4 3 1 . 2 2 . 6 Terminals 16 | . 3 . 4 . . . 1 1 2 . 1 . 1 . . 3 Fabricators 2 | . . . . . . . . . 1 1 . . . . . . Repair Stations . | . . . . . . . . . . . . . . . . . Recycling Units . | . . . . . . . . . . . . . . . . . Scanalyzers 6 | . . . 2 . . . . . . 1 . . 1 2 . . Garrison Access 5 | . . . . . . . . . 1 1 . . . . . 3 Total Hacks 132 | . 9 . 26 . 50 . 4 2 13 10 1 . 4 4 . 9 Successful 97 | . 4 . 15 . 50 . 2 1 6 7 1 . 2 3 . 6 Failed 34 | . 5 . 10 . . . 2 1 7 3 . . 2 1 . 3 Catastrophic 3 | . 1 . 1 . . . . . . . . . 1 . . . Database Lockouts 1 | . . . 1 . . . . . . . . . . . . . Manual 29 | . 5 . 11 . 1 . 1 . 8 . . . 2 . . 1 Terminals 48 | . 9 . 16 . . . 4 2 9 . 1 . 2 . . 5 Fabricators 4 | . . . . . . . . . 3 1 . . . . . . Repair Stations . | . . . . . . . . . . . . . . . . . Recycling Units . | . . . . . . . . . . . . . . . . . Scanalyzers 22 | . . . 10 . . . . . . 6 . . 2 4 . . Garrison Access 8 | . . . . . . . . . 1 3 . . . . . 4 Terminal Hacks 69 | . 4 . 6 . 50 . 1 1 3 . 1 . . . . 3 Record 50 | . . . 1 . 49 . . . . . . . . . . . Robot Analysis 6 | . 2 . 3 . . . . . 1 . . . . . . . Prototype ID Bank 4 | . 2 . . . . . 1 . 1 . . . . . . . Open DSF 1 | . . . . . . . . . . . 1 . . . . . Terminal Index 3 | . . . 1 . . . . 1 1 . . . . . . . Locate Traps 1 | . . . 1 . . . . . . . . . . . . . Recall Extermination 1 | . . . . . . . . . . . . . . . . 1 Recall Reinforcements 1 | . . . . . . . . . . . . . . . . 1 Zone Layout 1 | . . . . . . . . . . . . . . . . 1 Proto ID Catalog 1 | . . . . . 1 . . . . . . . . . . . Fabricator Hacks 2 | . . . . . . . . . 1 1 . . . . . . Network Status 1 | . . . . . . . . . . 1 . . . . . . Build 1 | . . . . . . . . . 1 . . . . . . . Repair Station Hacks . | . . . . . . . . . . . . . . . . . Recycling Unit Hacks . | . . . . . . . . . . . . . . . . . Scanalyzer 17 | . . . 7 . . . . . . 5 . . 2 3 . . Insert Component 2 | . . . . . . . . . . 2 . . . . . . Analyze 2 | . . . . . . . . . . 2 . . . . . . Retrieve Study 13 | . . . 7 . . . . . . 1 . . 2 3 . . Garrison Access Hacks 4 | . . . . . . . . . . 1 . . . . . 3 Seal Access 4 | . . . . . . . . . . 1 . . . . . 3 Unauthorized Hacks 5 | . . . 2 . . . 1 . 2 . . . . . . . Terminals 5 | . . . 2 . . . 1 . 2 . . . . . . . Botnet 5 | . . . 2 . . . 1 . 2 . . . . . . . Fabricators . | . . . . . . . . . . . . . . . . . Repair Stations . | . . . . . . . . . . . . . . . . . Recycling Units . | . . . . . . . . . . . . . . . . . Scanalyzers . | . . . . . . . . . . . . . . . . . Garrison Access . | . . . . . . . . . . . . . . . . . Data Cores Recovered 1 | . . . 1 . . . . . . . . . . . . . Used 1 | . . . 1 . . . . . . . . . . . . . Hacking Detections 22 | . 2 . 4 . . . 1 1 3 3 1 . 2 1 . 4 Full Trace Events 7 | . 1 . 2 . . . . . 1 . . . 1 1 . 1 Feedback Events 1 | . . . . . . . . . . . . . . 1 . . Hackware Fried 1 | . . . . . . . . . . . . . . 1 . . Feedback Blocked . | . . . . . . . . . . . . . . . . . Robot Schematics Acquired . | . . . . . . . . . . . . . . . . . Robots Built . | . . . . . . . . . . . . . . . . . Authchips . | . . . . . . . . . . . . . . . . . Time . | . . . . . . . . . . . . . . . . . Total Robot Build Rating . | . . . . . . . . . . . . . . . . . Part Schematics Acquired 2 | . . . . . . . . . . 2 . . . . . . Parts Built 2 | . . . . . . . . . 2 . . . . . . . Authchips . | . . . . . . . . . . . . . . . . . Time 95 | . . . . . . . . . 95 . . . . . . . Total Part Build Rating 10 | . . . . . . . . . 10 . . . . . . . Part Studies Acquired 13 | . . . 7 . . . . . . 1 . . 2 3 . . Parts Repaired . | . . . . . . . . . . . . . . . . . Time . | . . . . . . . . . . . . . . . . . Parts Recycled . | . . . . . . . . . . . . . . . . . Recycled Matter . | . . . . . . . . . . . . . . . . . Retrieved Matter . | . . . . . . . . . . . . . . . . . Retrieved Components . | . . . . . . . . . . . . . . . . . Parts Scanalyzed 2 | . . . . . . . . . . 2 . . . . . . Part Schematics Acquired 2 | . . . . . . . . . . 2 . . . . . . Parts Damaged . | . . . . . . . . . . . . . . . . . Bothacking | -11 -10 -10 -9 -9 -9 -8 -8 -7 -6 -5 -4 -4 -3 -2 -2 -1 ------------ Run | Yrd Mat Min Mat Min Exi Min Mat Fac Fac Fac Fac DSF Res Res Tes Acc Used RIF Installer . | . . . . . . . . . . . . . . . . . Robots Hacked 10 | . . . . . . . . . . 2 . . 8 . . . Non-combat 7 | . . . . . . . . . . 2 . . 5 . . . Combat 3 | . . . . . . . . . . . . . 3 . . . Robot Hacks Applied 12 | . . . . . . . . . . 2 . . 10 . . . parse_system 5 | . . . . . . . . . . . . . 5 . . . no_distress 2 | . . . . . . . . . . . . . 2 . . . find_fabricator 2 | . . . . . . . . . . 1 . . 1 . . . find_dsf 1 | . . . . . . . . . . . . . 1 . . . find_recycling 2 | . . . . . . . . . . 1 . . 1 . . . Relay Couplers Released . | . . . . . . . . . . . . . . . . . Fabnet Peak Effective % . | . . . . . . . . . . . . . . . . . Robots Rewired . | . . . . . . . . . . . . . . . . . Allies Hacked . | . . . . . . . . . . . . . . . . . Hacks Repelled . | . . . . . . . . . . . . . . . . . Allies | -11 -10 -10 -9 -9 -9 -8 -8 -7 -6 -5 -4 -4 -3 -2 -2 -1 -------- Run | Yrd Mat Min Mat Min Exi Min Mat Fac Fac Fac Fac DSF Res Res Tes Acc Total Allies 1 | . . . . 1 . . . . . . . . . . . . Largest Group 1 | . . . . 1 1 . . . . . . . . . . . Highest-Rated Group 31 | . . . . 31 31 . . . . . . . . . . . Highest-Rated Ally 31 | . . . . 31 31 . . . . . . . . . . . Total Orders 2 | . . . . . . . . . . . . . . . . 2 EXPLORE 2 | . . . . . . . . . . . . . . . . 2 Ally Attacks . | . . . . . . . . . . . . . . . . . Total Damage . | . . . . . . . . . . . . . . . . . Kills . | . . . . . . . . . . . . . . . . . Allies Corrupted 2 | . . . . . . . . . . . . . . . . 2 Allies Melted . | . . . . . . . . . . . . . . . . . Intel | -11 -10 -10 -9 -9 -9 -8 -8 -7 -6 -5 -4 -4 -3 -2 -2 -1 ------- Run | Yrd Mat Min Mat Min Exi Min Mat Fac Fac Fac Fac DSF Res Res Tes Acc Active Infowar (turns) 6833 | 20 630 547 722 . . . 114 743 884 882 119 199 684 452 124 713 Optics 4056 | . . . . . . . . . 883 882 119 199 684 452 124 713 Sensors 730 | . . 430 298 . . . . . 2 . . . . . . . Terrain 3652 | 20 630 117 146 . . . . 682 875 747 87 . . 60 . 288 Structural 16 | . . . . . . . . . . . . . . . . 16 Traps 961 | . . . . . . . . . . 248 92 199 422 . . . Seismic 472 | . . . . . . . 114 358 . . . . . . . . T.N.C. 563 | . . . 563 . . . . . . . . . . . . . Jamming 142 | . . . . . . . . . . . 3 . . . . 139 ECM 371 | . . . . . . . . . . . . . 100 133 124 14 Robot Analysis Total 6 | . 2 . 3 . . . . . 1 . . . . . . . Derelict Logs Recovered 2 | . . . . 2 . . . . . . . . . . . . Drone Launches 5 | . . . . . . . . . . . . . . . . 5 Drone Recoveries . | . . . . . . . . . . . . . . . . . Exploration | -11 -10 -10 -9 -9 -9 -8 -8 -7 -6 -5 -4 -4 -3 -2 -2 -1 ------------- Run | Yrd Mat Min Mat Min Exi Min Mat Fac Fac Fac Fac DSF Res Res Tes Acc Turns Passed 8660 | 86 630 548 743 333 414 471 317 951 884 882 119 199 684 452 124 823 Spaces Moved 8744 | 66 461 342 380 227 294 259 220 728 755 753 159 321 1273 915 278 1313 Core 551 | 2 . . . . . . . . . . . . . . . 549 Treads . | . . . . . . . . . . . . . . . . . Legs . | . . . . . . . . . . . . . . . . . Wheels 4519 | 64 461 342 380 227 294 259 220 728 755 753 36 . . . . . Hover . | . . . . . . . . . . . . . . . . . Flight 3674 | . . . . . . . . . . . 123 321 1273 915 278 764 Fastest Speed 31 | 50 85 135 125 135 135 135 75 75 87 93 34 34 31 32 34 34 Average Speed 72 | 86 109 135 138 135 139 138 90 76 93 95 48 36 31 32 34 43 Slowest Speed 250 | 90 135 135 150 135 145 205 135 95 95 100 100 39 32 35 34 250 Overloaded Moves . | . . . . . . . . . . . . . . . . . Propulsion Burnouts . | . . . . . . . . . . . . . . . . . Robots Hopped 74 | . . . . . . . . . . . 3 . 21 13 1 36 Potential Cave-ins 6 | . . . . . . . . . . . . . . 6 . . Cave-ins Triggered . | . . . . . . . . . . . . . . . . . Exploration Rate (%) 36 | 3 61 69 38 54 66 38 18 14 22 20 4 91 25 18 47 38 Regions Visited 16 Branch Regions 5 Pre-discovered Areas 2 | . . . . 1 1 . . . . . . . . . . . Known Exits Taken 11 | . . . 1 1 1 1 1 1 1 . 1 . 1 1 1 . Unknown Exits Taken 4 | 1 1 1 . . . . . . . 1 . . . . . . Scrap Searched 2 | . . 1 . . . 1 . . . . . . . . . . Spaces Dug 84 | . . . . . . 1 5 11 3 6 . . 23 24 3 8 Terrain Destroyed 241 | . . 2 5 . . 72 5 30 6 53 . . 31 24 3 10 Melee 71 | . . . . . . 1 5 11 . 1 . . 23 24 3 3 Projectile 28 | . . 2 5 . . 2 . . 6 6 . . . . . 7 AOE 142 | . . . . . . 69 . 19 . 46 . . 8 . . . Terrain Rammed . | . . . . . . . . . . . . . . . . . Walls Destroyed . | . . . . . . . . . . . . . . . . . Machines Disabled . | . . . . . . . . . . . . . . . . . Actions | -11 -10 -10 -9 -9 -9 -8 -8 -7 -6 -5 -4 -4 -3 -2 -2 -1 --------- Run | Yrd Mat Min Mat Min Exi Min Mat Fac Fac Fac Fac DSF Res Res Tes Acc Total 10397 | 83 540 397 515 239 298 331 309 999 911 877 195 413 1487 1014 299 1490 Wait 792 | . 6 26 45 2 1 27 50 145 84 31 16 11 164 39 14 131 Move 8588 | 65 460 341 379 226 293 258 219 727 754 752 152 320 1232 889 275 1246 Hop 66 | . . . . . . . . . . . 3 . 19 12 1 31 Pick Up 219 | 7 27 3 16 1 1 6 17 19 17 22 3 35 10 18 5 12 Fast Attach 54 | 7 . 1 1 . . . . 11 4 4 . 6 4 3 . 13 Attach 57 | . . 1 4 1 . 4 2 5 3 4 4 1 3 9 . 16 Detach 21 | . . 1 . . . . . 3 2 . 5 2 1 2 . 5 Swap 98 | . 6 1 11 . 1 6 4 12 12 11 10 5 7 5 1 6 Drop 136 | . 13 5 13 1 2 5 2 10 16 19 2 26 7 11 . 4 Fire 216 | 4 28 17 35 7 . 22 2 39 10 25 . 1 12 . . 14 Melee 140 | . . . 11 1 . 3 13 28 9 9 . . 28 26 3 9 Ram 2 | . . . . . . . . . . . . . . . . 2 Kick . | . . . . . . . . . . . . . . . . . Crush . | . . . . . . . . . . . . . . . . . Escape Stasis 7 | . . . . . . . . . . . . 6 . . . 1 Rewire . | . . . . . . . . . . . . . . . . . Trap 1 | . . 1 . . . . . . . . . . . . . . Miscellaneous . | . . . . . . . . . . . . . . . . . Route ------- -11/Scrapyard -10/Materials (discovered 3 exits: *Mat x2 / [*Min]) -10/Mines -9/Materials -9/Mines (discovered 2 exits: *Mat / *Exi) -9/Exiles -8/Mines -8/Materials -7/Factory -6/Factory -5/Factory (discovered 2 exits: *Fac / [Ext]) -4/Factory -4/DSF -3/Research -2/Research (discovered 2 exits: *Acc / *Tes) -2/Testing -1/Access History --------- Turn | Location | Event 22 | -11/Scrapyard | Discovered new exit (range 16) 87 | -11/Scrapyard | Entered Materials 316 | -10/Materials | Build established: Mutant 340 | -10/Materials | Discovered new exit (range 3) 582 | -10/Materials | Discovered new exit (range 16) 655 | -10/Materials | Discovered new exit (range 15) 717 | -10/Materials | Entered Mines 831 | -10/Mines | Found a damaged Exp. Sensor Array with a note attached 835 | -10/Mines | Found Prototype Device 835 | -10/Mines | Identified Exp. Sensor Array 881 | -10/Mines | Found a hidden stash of uninstalled traps 1047 | -10/Mines | A weapon hastily lodged in a ceiling crevice suddenly fell to the ground 1147 | -10/Mines | Discovered new exit (range 10) 1265 | -10/Mines | Entered Materials 1265 | -9/Materials | Evolved 2 slots: Utility x1, Weapon x1 1482 | -9/Materials | Central database locked down 1564 | -9/Materials | Build established: Skirmisher 1941 | -9/Materials | Discovered new exit (range 16) 1988 | -9/Materials | Identified exit to Mines 2008 | -9/Materials | Entered Mines 2022 | -9/Mines | Learned Materials terminal intel 2024 | -9/Mines | Build established: Mutant 2120 | -9/Mines | Discovered new exit (range 7) 2126 | -9/Mines | Identified exit to Materials 2132 | -9/Mines | Assembled infested the area 2223 | -9/Mines | Received a Rocket Launcher from a helpful Derelict 2309 | -9/Mines | Received a Mining Laser from a helpful Derelict 2335 | -9/Mines | Deemed a non-threat by the Exiles lab entrance 2335 | -9/Mines | Discovered new exit (range 5) 2339 | -9/Mines | Identified exit to Exiles 2341 | -9/Mines | Entered Exiles 2341 | -9/Exiles | Accompanied by 1 ally 2377 | -9/Exiles | Met 8R-AWN 2400 | -9/Exiles | Met EX-HEX 2441 | -9/Exiles | Met EX-BIN 2478 | -9/Exiles | Aligned with FarCom system 2479 | -9/Exiles | Given EX-Vault access code 2541 | -9/Exiles | Opened EX-Vault 2556 | -9/Exiles | Found Lightpack 2.0 2583 | -9/Exiles | Warned to stay clear of 0b10 Research branches 2627 | -9/Exiles | Met EX-DEC 2664 | -9/Exiles | Learned location of Zion (-6) 2726 | -9/Exiles | Discovered new exit (range 14) 2742 | -9/Exiles | Identified exit to Mines 2755 | -9/Exiles | Left Exiles lab with Lightpack 2.0 2755 | -9/Exiles | Entered Mines 2966 | -8/Mines | Core integrity fell below 50% 2975 | -8/Mines | Lost 4 parts (2n2w) 3075 | -8/Mines | Discovered exit to Materials (range 6) 3226 | -8/Mines | Entered Materials 3226 | -8/Materials | Evolved 2 slots: Utility x2 3227 | -8/Materials | Loaded intel: 12 terminal locations 3490 | -8/Materials | Discovered new exit (range 15) 3504 | -8/Materials | Identified exit to Factory 3543 | -8/Materials | Build established: Hauler-Mutant 3543 | -8/Materials | Entered Factory 3543 | -7/Factory | Evolved 2 slots: Propulsion x2 3987 | -7/Factory | Build established: Hauler-Assassin 4160 | -7/Factory | Lost 3 parts (2n1u) 4384 | -7/Factory | Discovered new exit (range 5) 4393 | -7/Factory | Identified exit to Factory 4494 | -7/Factory | Entered another Factory area 4494 | -6/Factory | Evolved 2 slots: Utility x2 5024 | -6/Factory | Discovered new exit (range 12) 5072 | -6/Factory | Fabricated Carbide Saw? 5166 | -6/Factory | Identified exit to Factory 5378 | -6/Factory | Entered another Factory area 5378 | -5/Factory | Evolved 2 slots: Utility x1, Weapon x1 5794 | -5/Factory | Discovered new exit (range 9) 6086 | -5/Factory | Discovered new exit (range 18) 6221 | -5/Factory | Lost 3 parts (1p1n1w) 6260 | -5/Factory | Entered another Factory area 6260 | -4/Factory | Evolved 2 slots: Propulsion x2 6344 | -4/Factory | Identified exit to DSF 6379 | -4/Factory | Entered DSF 6380 | -4/DSF | Joined Warlord attack on 0b10 via DSF 6398 | -4/DSF | Additional patrols routed to DSF 6455 | -4/DSF | Discovered new exit (range 15) 6467 | -4/DSF | Lost 3 allies 6578 | -4/DSF | Entered Research 6578 | -3/Research | Evolved 2 slots: Propulsion x1, Utility x1 6608 | -3/Research | Build established: Hauler-Scout 6871 | -3/Research | Discovered new exit (range 5) 7004 | -3/Research | Identified exit to Research 7262 | -3/Research | Entered another Research area 7262 | -2/Research | Evolved 2 slots: Power x1, Propulsion x1 7278 | -2/Research | Found Prototype Device 7289 | -2/Research | Identified Exp. Actuator Array 7297 | -2/Research | Found Prototype Device 7303 | -2/Research | Found Prototype Processor 7418 | -2/Research | Adv. Hacking Suite fried by hacking feedback 7438 | -2/Research | Identified Exp. Terrain Scan Processor 7536 | -2/Research | Spotted B-90 Cyclops 7616 | -2/Research | Lost 7 parts (2n2u3w) 7700 | -2/Research | Discovered new exit (range 22) 7714 | -2/Research | Identified exit to Testing 7714 | -2/Research | Discovered new exit (range 9) 7714 | -2/Research | Entered Testing 7715 | -2/Testing | Maximum security lockdown engaged 7826 | -2/Testing | Discovered new exit (range 14) 7827 | -2/Testing | Found Prototype Device 7838 | -2/Testing | Identified exit to Access 7838 | -2/Testing | Entered Access 7838 | -1/Access | Evolved 2 slots: Utility x2 7841 | -1/Access | Identified Exp. Transmission Jammer 8088 | -1/Access | First assault squad dispatched 8148 | -1/Access | Build established: Hacker-Scout 8228 | -1/Access | Lost 3 allies 8240 | -1/Access | Found Prototype Launcher 8240 | -1/Access | Identified Hellfire Missile Launcher 8253 | -1/Access | Lost 9 parts (2p2n3u2w) 8335 | -1/Access | Lost 6 parts (4n2u) 8393 | -1/Access | System corruption reached 10% 8476 | -1/Access | Core integrity fell below 50% 8494 | -1/Access | Build established: Hacker-Mutant 8611 | -1/Access | Lost 4 parts (4u) 8632 | -1/Access | Core integrity fell below 20% 8648 | -1/Access | Spotted B-99 Colossus 8661 | -1/Access | Destroyed by B-99 Colossus with Multirail Last Messages --------------- 08609_ C3|IQL8BIE2OLQVI 2BGKJP9ZH1U#&ZDNIHS 08619_ Acquired Graphene Brace. 08624_ 4N J84>U>ASVOOCZKFW0E6SK8DJ 08651_ O-32 Director uses terminal to summon reinforcements. 08651_ ALERT: Hostiles spotted, dispatching reinforcements to Terminal A022. 08651_ O-32 Director locks terminal. 08652_ Penetrated by Slug. 08652_ Slug penetrates Wall. 08656_ Penetrated by Slug. 08656_ Slug penetrates Wall. 08656_ Penetrated by Slug. 08656_ Slug penetrates Wall. 08659_ System corrupted: Matter fused (-9). 08661_ Penetrated by Slug. Map ----- +----------------------------------------------------+ | | | | | | | | | | | | | | | | | | | | | | | | | | | ?????????????????????????????????????????????????? | | ?????????????????????????????????????????????????? | | ?????????????????????????????????????????????????? | | ???????????????????????????????????????#####?????? | | ????????????????????######????????????? #?????? | | ????????????????????# """ ????????????] #?????? | | ????????????#???????#""T""###########? ####### | | ????????????? ????##"" ""## # # | | ????????????? ### =o= = ; # | | ?????????????? === + # | | ?????????????????### == ######## | | ?????????????????# BB # # | | ?????????????????# BB @ %## # | | ?????????????????### = #? # | | ???????????????????# " = ## # | | ???????????????????# ""F""" + ####### | | ???????????????????# """"" ## #?????? | | ???????????????????# ######### ####+####?##### | | ???????????????????# ????????# g## #??# | | ???????????????????# ?????????# g #??# | | ???????????????????#A ?????????# h " #??# | | ???????????????????# ??????????# h #??# | | ???????????????????# ??????????###### #??# | | ??????????????????? ??????############# ###??# | | ??????????????????????????# # ########+# | | ?????????????????????Y????# # | | ??????????????????????????# !! + ######### | | ??????????????????????????# !! # #???????# | | ??????????????????????????# # #???????# | | ??????????????????????????# # #???????# | | ??????????????????????????# # #???????# | | ??????????????????????????########+#### #???????# | | ?????????????????????????????????# #??# #??????## | | ?????????????????????????????????# #??# #???? ## | | ?????????????????????????######### #### #?? ## | | ?????????????????????????#* # # ## | | ?????????????????????????# + + * ## | +----------------------------------------------------+ Best States ------------- Heat Dissipation 83 Energy Generation 35 Energy Capacity 280 Matter Stores 300 Matter Capacity 300 Sight Range 23 Robot Scan Range 20 Terrain Scan Range 16 Terrain Scan Density 1010 ECM Strength 2 Jamming Range 22 Armor Coverage 225 Core Shielding 30 Evasion (%) 75 Targeting Accuracy 6 Energy Filtering 50 Offensive Hacking 42 Authchip Count 4 Item Schematics ----------------- Hacking Suite | -5/Factory | Scanalyzed Mic. Nuclear Core | -5/Factory | Scanalyzed Robot Schematics ------------------ None Fabricated ------------ Carbide Saw | x2 | -6/Factory | Preloaded Repaired ---------- Nothing Studied --------- Arm. Wheel | -9/Materials | Hacked Particle Cannon | -9/Materials | Hacked Rocket Launcher | -9/Materials | Hacked Wheel | -9/Materials | Hacked Imp. Ion Engine | -9/Materials | Hacked Datajack | -9/Materials | Hacked Ion Engine | -9/Materials | Hacked Carbide Saw | -5/Factory | Hacked Field Propulsion Array | -3/Research | Hacked Impulse Thruster Array | -3/Research | Hacked Nuclear Pulse Array | -2/Research | Hacked Mic. Antimatter Reactor | -2/Research | Hacked Power Sword | -2/Research | Hacked Alien Tech Used ----------------- None Achievements -------------- Dodgeball, But With Guns I Know It's In Here Somewhere Ultimate Loadout Challenges ------------ None Game ------ Seed ScatterAssemblyActivator Manual? 0 Play Time 03:43:09 Cumulative 134.7 hours Start 2026.09.03 @ 09:11:11 End 2026.09.07 @ 05:20:36 Sessions 13 Manual Loads 0 Difficulty Rogue Special Mode None Game No. 111 Rogue 111 Adventurer 0 Explorer 0 Win Type - Total 1 Types 1/0/0/0/0/0/0/0/0/0 Lore% 21 Gallery% 45 Achievement% 30 Wizard Run 0 Options --------- Layout 1 ASCII 0 Keyboard 1 Movement Numpad Keybinds 0 Fullscreen 1 Font 32/SmallcapsGlow Map View 77x35 Zoom Use 0% Tactical HUD 1 Map Filters NONE Filters NONE Steam 1 RUN: 8423bf7f-32e7-4414-aad3-70bc5643fc6d